lending/lending_fUSD_20241120
["ID","MTS","AMOUNT","RATE_DAILY","PERIOD"]
[342792416,1732140825889,-1147.11,0.0005863,120]
[342792417,1732140825899,-1368.4,0.0005863,120]
[342792418,1732140825908,-1974.94,0.0005863,120]
[342792419,1732140825917,-500.0,0.0005863,120]
[342792420,1732140825926,-13034.59,0.0005863,120]
[342792421,1732140825936,-17457.35,0.0005863,120]
[342792422,1732140825946,-2237.64,0.0005863,120]
[342792423,1732140825956,-2737.65,0.0005863,120]
[342792424,1732140825966,-551.05,0.0005863,120]
[342792425,1732140825976,-2479.1,0.0005863,120]
[342792426,1732140825985,-500.0,0.0005863,120]
[342792427,1732140825994,-500.0,0.0005863,120]
[342792428,1732140826004,-3077.78,0.0005863,120]
[342792429,1732140826016,-656.88,0.0005863,120]
[342792430,1732140826026,-1550.26,0.0005863,120]
[342792431,1732140826035,-500.0,0.0005863,120]
[342792432,1732140826045,-725.78,0.0005863,120]
[342792433,1732140826055,-5411.3,0.0005863,120]
[342792434,1732140826064,-996.23,0.0005863,120]
[342792435,1732140826074,-4393.1,0.0005863,120]
[342792436,1732140826084,-1967.61,0.0005863,120]
[342792437,1732140826093,-535.35,0.0005863,120]
[342792438,1732140826104,-500.0,0.0005863,120]
[342792439,1732140826114,-1127.77,0.0005863,120]
[342792440,1732140826123,-559.06,0.0005863,120]
[342792441,1732140826132,-7043.87,0.0005863,120]
[342792442,1732140826141,-580.25,0.0005863,120]
[342792443,1732140826151,-570.31,0.0005863,120]
[342792444,1732140826160,-8863.78,0.0005863,120]
[342792445,1732140826170,-604.62,0.0005863,120]
[342792446,1732140826184,-2040.5,0.0005863,120]
[342792447,1732140826194,-1500.0,0.0005863,120]
[342792448,1732140826203,-2305.42,0.0005863,120]
[342792449,1732140826212,-762.69,0.0005863,120]
[342792450,1732140826223,-713.08,0.0005863,120]
[342792451,1732140826232,-1604.28,0.0005863,120]
[342792452,1732140826242,-500.0,0.0005863,120]
[342792453,1732140826254,-1101.03,0.0005863,120]
[342792454,1732140826267,-500.0,0.0005863,120]
[342792455,1732140826276,-500.0,0.0005863,120]
[342792456,1732140826285,-1320.75,0.0005863,120]
[342792457,1732140826294,-500.0,0.0005863,120]
[342792458,1732140826303,-500.0,0.0005863,120]
[342792459,1732140826313,-485.57138008,0.0005863,120]
[342792460,1732140826322,-5594.76,0.0005863,120]
[342792461,1732140826331,-1100.57,0.0005863,120]
[342792462,1732140826341,-500.0,0.0005863,120]
[342792463,1732140826351,-918.38,0.0005863,120]
[342792464,1732140826360,-3670.68,0.0005863,120]
[342792465,1732140826371,-500.0,0.0005863,120]
[342792466,1732140826382,-561.2,0.0005863,120]
[342792467,1732140826392,-3126.28037214,0.0005864,120]
[342792468,1732140826402,-80000.0,0.0005865,120]
[342792469,1732140826412,-248168.47301454,0.000587,120]
[342792470,1732140826421,-230.65631041,0.00058723,30]
[342792471,1732140826431,-11708.52272014,0.0005877,13]
[342792472,1732140826441,-597.23,0.000588,120]
[342792473,1732140826450,-250000.0,0.000588,120]
[342792474,1732140826460,-204.0,0.0005881,30]
[342792475,1732140826469,-201.0,0.0005881,120]
[342792476,1732140826479,-204.0,0.0005881,120]
[342792477,1732140826488,-215.0,0.0005881,120]
[342792478,1732140826497,-5000.0,0.0005882,120]
[342792479,1732140826508,-1500.0,0.0005888,120]
[342792480,1732140826517,-1500.0,0.0005888,120]
[342792481,1732140826527,-1000.0,0.00058903,120]
[342792482,1732140826536,-500.0,0.00058904,7]
[342792483,1732140826546,-77341.65380988,0.00058904,120]
[342792484,1732140826556,-500.0,0.00058904,120]
[342792485,1732140826565,-500.0,0.00058904,120]
[342792486,1732140826575,-789.82,0.00058904,120]
[342792487,1732140826584,-907.52,0.00058904,120]
[342792488,1732140826593,-676.32,0.00058904,120]
[342792489,1732140826602,-1495.04,0.00058904,120]
[342792490,1732140826612,-690.77,0.00058904,120]
[342792491,1732140826621,-500.0,0.00058904,120]
[342792492,1732140826632,-500.0,0.00058904,120]
[342792493,1732140826642,-500.0,0.00058904,120]
[342792494,1732140826652,-494.90344962,0.00058904,120]
[342792495,1732140826662,-500.0,0.00058904,120]
[342792496,1732140826672,-500.0,0.00058904,120]
[342792497,1732140826682,-802.91,0.00058904,120]
[342792498,1732140826692,-1078.99,0.00058904,120]
[342792499,1732140826701,-1196.86,0.00058904,120]
[342792500,1732140826710,-1553.66,0.00058904,120]
[342792501,1732140826720,-500.0,0.00058904,120]
[342792502,1732140826729,-500.0,0.00058904,120]
[342792503,1732140826738,-1468.02,0.00058904,120]
[342792504,1732140826748,-500.0,0.00058904,120]
[342792505,1732140826758,-1204.33,0.00058904,120]
[342792506,1732140826768,-689.54,0.00058904,120]
[342792507,1732140826777,-500.0,0.00058904,120]
[342792508,1732140826786,-500.0,0.00058904,120]
[342792509,1732140826796,-500.0,0.00058904,120]
[342792510,1732140826806,-3362.7,0.00058904,120]
[342792511,1732140826815,-500.0,0.00058904,120]
[342792512,1732140826824,-2907.27,0.00058904,120]
[342792513,1732140826834,-1034.08,0.00058904,120]
[342792514,1732140826844,-183.81562913,0.00058904,120]
[342792515,1732140826854,-500.0,0.00058904,120]
[342792516,1732140826863,-577.45,0.00058904,120]
[342792517,1732140826873,-691.51,0.00058904,120]
[342792518,1732140826883,-1141.42,0.00058904,120]
[342792519,1732140826892,-1067.52,0.00058904,120]
[342792520,1732140826902,-500.0,0.00058904,120]
[342792521,1732140826912,-1047.06,0.00058904,120]
[342792522,1732140826922,-1588.94,0.00058904,120]
[342792523,1732140826932,-826.46,0.00058904,120]
[342792524,1732140826942,-883.47,0.00058904,120]
[342792525,1732140826952,-1125.72,0.00058904,120]
[342792526,1732140826961,-500.0,0.00058904,120]
[342792527,1732140826971,-500.0,0.00058904,120]
[342792528,1732140826981,-1116.01,0.00058904,120]
[342792529,1732140826991,-1198.91,0.00058904,120]
[342792530,1732140827000,-504.42116482,0.00058904,120]
[342792531,1732140827010,-1410.51,0.00058904,120]
[342792532,1732140827020,-508.72,0.00058904,120]
[342792533,1732140827029,-500.0,0.00058904,120]
[342792534,1732140827039,-500.0,0.00058904,120]
[342792535,1732140827048,-501.02,0.00058904,120]
[342792536,1732140827057,-854.5,0.00058904,120]
[342792537,1732140827067,-500.0,0.00058904,120]
[342792538,1732140827076,-923.86,0.00058904,120]
[342792539,1732140827086,-500.0,0.00058904,120]
[342792540,1732140827095,-500.0,0.00058904,60]
[342792541,1732140827104,-810.6,0.00058904,120]
[342792542,1732140827113,-1843.46,0.00058904,120]
[342792543,1732140827123,-909.22,0.00058904,120]
[342792544,1732140827132,-500.0,0.00058904,120]
[342792545,1732140827141,-500.0,0.00058904,120]
[342792546,1732140827150,-504.95525335,0.00058904,120]
[342792547,1732140827160,-533.52,0.00058904,120]
[342792548,1732140827171,-2415.23,0.00058904,120]
[342792549,1732140827184,-972.8,0.00058904,120]
[342792550,1732140827193,-1624.46,0.00058904,120]
[342792551,1732140827203,-475.1478405,0.00058904,120]
[342792552,1732140827212,-530.46,0.00058904,120]
[342792553,1732140827223,-730.89,0.00058904,120]
[342792554,1732140827232,-615.39,0.00058904,120]
[342792555,1732140827242,-500.0,0.00058904,120]
[342792556,1732140827251,-500.0,0.00058904,120]
[342792557,1732140827262,-515.66,0.00058904,120]
[342792558,1732140827272,-783.6,0.00058904,120]
[342792559,1732140827281,-713.08,0.00058904,120]
[342792560,1732140827290,-524.36,0.00058904,120]
[342792561,1732140827299,-1852.69,0.00058904,120]
[342792562,1732140827308,-500.0,0.00058904,120]
[342792563,1732140827318,-156.72186919,0.00058904,120]
[342792564,1732140827328,-729.05,0.00058904,120]
[342792565,1732140827337,-259.63476174,0.00058904,120]
[342792566,1732140827347,-2435.5,0.00058904,120]
[342792567,1732140827357,-521.8,0.00058904,120]
[342792568,1732140827366,-642.48,0.00058904,120]
[342792569,1732140827376,-849.85,0.00058904,120]
[342792570,1732140827385,-627.45,0.00058904,120]
[342792571,1732140827395,-858.26,0.00058904,120]
[342792572,1732140827405,-503.51,0.00058904,120]
[342792573,1732140827414,-742.62,0.00058904,120]
[342792574,1732140827424,-2800.08,0.00058904,120]
[342792575,1732140827434,-500.0,0.00058904,120]
[342792576,1732140827443,-563.45,0.00058904,120]
[342792577,1732140827452,-403.264828,0.00058904,120]
[342792578,1732140827462,-1104.08,0.00058904,120]
[342792579,1732140827472,-500.0,0.00058904,120]
[342792580,1732140827482,-1222.85,0.00058904,120]
[342792581,1732140827491,-1021.61,0.00058904,120]
[342792582,1732140827501,-578.33,0.00058904,120]
[342792583,1732140827512,-1661.17,0.00058904,120]
[342792584,1732140827522,-800.14,0.00058904,120]
[342792585,1732140827531,-500.0,0.00058904,120]
[342792586,1732140827541,-1090.19,0.00058904,120]
[342792587,1732140827551,-500.0,0.00058904,120]
[342792588,1732140827560,-1054.3,0.00058904,120]
[342792589,1732140827570,-1209.25,0.00058904,120]
[342792590,1732140827579,-1127.18,0.00058904,120]
[342792591,1732140827589,-500.0,0.00058904,120]
[342792592,1732140827598,-178.92218688,0.00058904,120]
[342792593,1732140827608,-1267.34,0.00058904,120]
[342792594,1732140827618,-2432.38,0.00058904,7]
[342792595,1732140827627,-1560.72,0.00058904,120]
[342792596,1732140827637,-1047.78,0.00058904,120]
[342792597,1732140827646,-655.09,0.00058904,120]
[342792598,1732140827656,-500.0,0.00058904,120]
[342792599,1732140827666,-500.0,0.00058904,120]
[342792600,1732140827675,-500.0,0.00058904,120]
[342792601,1732140827685,-1376.36,0.00058904,120]
[342792602,1732140827694,-758.47,0.00058904,120]
[342792603,1732140827703,-1218.68,0.00058904,120]
[342792604,1732140827712,-1031.21,0.00058904,120]
[342792605,1732140827722,-746.97,0.00058904,120]
[342792606,1732140827731,-500.0,0.00058904,120]
[342792607,1732140827740,-859.85,0.00058904,120]
[342792608,1732140827753,-1530.02,0.00058904,120]
[342792609,1732140827763,-1956.13,0.00058904,120]
[342792610,1732140827771,-626.84,0.00058904,120]
[342792611,1732140827780,-925.63,0.00058904,120]
[342792612,1732140827790,-1089.2,0.00058904,120]
[342792613,1732140827799,-500.0,0.00058904,120]
[342792614,1732140827809,-746.22,0.00058904,120]
[342792615,1732140827818,-1753.04,0.00058904,120]
[342792616,1732140827827,-1615.28,0.00058904,120]
[342792617,1732140827835,-750.0,0.00058904,120]
[342792618,1732140827844,-2808.16,0.00058904,120]
[342792619,1732140827853,-628.55,0.00058904,120]
[342792620,1732140827865,-2720.22,0.00058904,120]
[342792621,1732140827875,-1040.43,0.00058904,120]
[342792622,1732140827885,-679.38,0.00058904,120]
[342792623,1732140827895,-579.85,0.00058904,120]
[342792624,1732140827904,-1233.54,0.00058904,120]
[342792625,1732140827913,-560.33,0.00058904,120]
[342792626,1732140827922,-1140.69,0.00058904,120]
[342792627,1732140827932,-1241.7,0.00058904,120]
[342792628,1732140827941,-673.6,0.00058904,120]
[342792629,1732140827952,-1595.79,0.00058904,120]
[342792630,1732140827963,-690.2,0.00058904,120]
[342792631,1732140827972,-614.35,0.00058904,120]
[342792632,1732140827981,-1420.27,0.00058904,120]
[342792633,1732140827991,-500.0,0.00058904,120]
[342792634,1732140828002,-500.0,0.00058904,120]
[342792635,1732140828012,-500.0,0.00058904,120]
[342792636,1732140828021,-500.0,0.00058904,120]
[342792637,1732140828031,-1747.91,0.00058904,120]
[342792638,1732140828040,-1026.85,0.00058904,120]
[342792639,1732140828050,-635.10246245,0.00058904,120]
[342792640,1732140828058,-1208.59,0.00058904,120]
[342792641,1732140828067,-813.38,0.00058904,120]
[342792642,1732140828077,-1929.2,0.00058904,120]
[342792643,1732140828086,-509.94,0.00058904,120]
[342792644,1732140828095,-547.23,0.00058904,120]
[342792645,1732140828105,-983.72,0.00058904,120]
[342792646,1732140828114,-1133.87,0.00058904,120]
[342792647,1732140828124,-2243.95,0.00058904,120]
[342792648,1732140828133,-500.0,0.00058904,120]
[342792649,1732140828142,-837.29,0.00058904,120]
[342792650,1732140828151,-601.65,0.00058904,120]
[342792651,1732140828161,-500.0,0.00058904,120]
[342792652,1732140828174,-500.0,0.00058904,120]
[342792653,1732140828184,-337.56314774,0.00058904,120]
[342792654,1732140828194,-1244.02,0.00058904,120]
[342792655,1732140828203,-500.0,0.00058904,120]
[342792656,1732140828214,-581.48,0.00058904,120]
[342792657,1732140828225,-912.77,0.00058904,120]
[342792658,1732140828235,-822.59,0.00058904,120]
[342792659,1732140828245,-1640.54,0.00058904,120]
[342792660,1732140828255,-153.24024802,0.00058904,120]
[342792661,1732140828267,-957.41,0.00058904,120]
[342792662,1732140828277,-3305.34,0.00058904,120]
[342792663,1732140828287,-546.92,0.00058904,120]
[342792664,1732140828297,-500.0,0.00058904,120]
[342792665,1732140828306,-1590.28,0.00058904,120]
[342792666,1732140828316,-4503.54,0.00058904,120]
[342792667,1732140828326,-2459.56,0.00058904,120]
[342792668,1732140828336,-5054.97,0.00058904,120]
[342792669,1732140828346,-500.0,0.00058904,120]
[342792670,1732140828356,-500.0,0.00058904,120]
[342792671,1732140828365,-1237.62,0.00058904,120]
[342792672,1732140828375,-1805.81,0.00058904,120]
[342792673,1732140828386,-1705.69,0.00058904,120]
[342792674,1732140828396,-730.02,0.00058904,120]
[342792675,1732140828406,-556.28,0.00058904,120]
[342792676,1732140828415,-1293.03,0.00058904,120]
[342792677,1732140828426,-735.83,0.00058904,120]
[342792678,1732140828436,-875.45,0.00058904,120]
[342792679,1732140828446,-2355.16,0.00058904,120]
[342792680,1732140828456,-529.9,0.00058904,120]
[342792681,1732140828466,-1626.59,0.00058904,120]
[342792682,1732140828476,-1065.14,0.00058904,120]
[342792683,1732140828487,-899.71,0.00058904,120]
[342792684,1732140828498,-500.0,0.00058904,120]
[342792685,1732140828508,-1031.07,0.00058904,120]
[342792686,1732140828528,-2139.66,0.00058904,120]
[342792687,1732140828538,-1000.0,0.00058904,30]
[342792688,1732140828549,-1746.7,0.00058904,120]
[342792689,1732140828559,-525.57,0.00058904,120]
[342792690,1732140828570,-500.0,0.00058904,120]
[342792691,1732140828580,-275.05851826,0.00058904,120]
[342792692,1732140828590,-1007.82,0.00058904,120]
[342792693,1732140828600,-525.94,0.00058904,120]
[342792694,1732140828610,-500.0,0.00058904,120]
[342792695,1732140828620,-800.11,0.00058904,120]
[342792696,1732140828630,-3332.16,0.00058904,120]
[342792697,1732140828640,-2450.69,0.00058904,120]
[342792698,1732140828650,-1123.27,0.00058904,120]
[342792699,1732140828660,-1393.96,0.00058904,120]
[342792700,1732140828670,-967.57,0.00058904,120]
[342792701,1732140828680,-500.0,0.00058904,120]
[342792702,1732140828690,-1357.65,0.00058904,120]
[342792703,1732140828700,-1642.87,0.00058904,120]
[342792704,1732140828710,-500.0,0.00058904,120]
[342792705,1732140828720,-1588.79,0.00058904,90]
[342792706,1732140828730,-500.0,0.00058904,120]
[342792707,1732140828740,-1853.26,0.00058904,120]
[342792708,1732140828750,-1717.17,0.00058904,120]
[342792709,1732140828761,-500.0,0.00058904,120]
[342792710,1732140828771,-700.0,0.00058904,120]
[342792711,1732140828780,-2546.22,0.00058904,120]
[342792712,1732140828791,-2834.37,0.00058904,120]
[342792713,1732140828802,-1334.03,0.00058904,120]
[342792714,1732140828811,-639.03758919,0.00058904,120]
[342792715,1732140828821,-2885.23,0.00058904,120]
[342792716,1732140828831,-4453.81,0.00058904,120]
[342792717,1732140828842,-2241.05,0.00058904,120]
[342792718,1732140828852,-2217.98,0.00058904,120]
[342792719,1732140828862,-500.0,0.00058904,120]
[342792720,1732140828872,-1402.45,0.00058904,60]
[342792721,1732140828882,-800.61,0.00058904,120]
[342792722,1732140828892,-500.0,0.00058904,120]
[342792723,1732140828902,-932.27,0.00058904,120]
[342792724,1732140828912,-1004.07,0.00058904,120]
[342792725,1732140828922,-2000.63,0.00058904,120]
[342792726,1732140828933,-703.55,0.00058904,120]
[342792727,1732140828943,-2241.76,0.00058904,120]
[342792728,1732140828953,-1132.68,0.00058904,120]
[342792729,1732140828964,-596.11,0.00058904,120]
[342792730,1732140828975,-794.52,0.00058904,120]
[342792731,1732140828986,-833.99,0.00058904,120]
[342792732,1732140828996,-2777.12,0.00058904,120]
[342792733,1732140829006,-1558.24,0.00058904,120]
[342792734,1732140829018,-1309.21,0.00058904,120]
[342792735,1732140829028,-500.0,0.00058904,120]
[342792736,1732140829039,-500.0,0.00058904,120]
[342792737,1732140829050,-500.08,0.00058904,120]
[342792738,1732140829060,-2539.87,0.00058904,120]
[342792739,1732140829071,-500.0,0.00058904,120]
[342792740,1732140829080,-500.0,0.00058904,120]
[342792741,1732140829090,-831.36,0.00058904,120]
[342792742,1732140829100,-1743.89,0.00058904,120]
[342792743,1732140829111,-500.0,0.00058904,120]
[342792744,1732140829121,-1229.75,0.00058904,120]
[342792745,1732140829131,-1365.28,0.00058904,120]
[342792746,1732140829141,-1290.22,0.00058904,120]
[342792747,1732140829151,-507.82,0.00058904,120]
[342792748,1732140829161,-3045.72,0.00058904,120]
[342792749,1732140829172,-916.6,0.00058904,120]
[342792750,1732140829186,-610.75,0.00058904,120]
[342792751,1732140829196,-500.0,0.00058904,120]
[342792752,1732140829207,-500.0,0.00058904,120]
[342792753,1732140829219,-502.86,0.00058904,120]
[342792754,1732140829230,-504.52,0.00058904,120]
[342792755,1732140829240,-1278.95,0.00058904,120]
[342792756,1732140829250,-702.18,0.00058904,120]
[342792757,1732140829263,-500.0,0.00058904,120]
[342792758,1732140829273,-3583.6,0.00058904,120]
[342792759,1732140829283,-1685.95,0.00058904,120]
[342792760,1732140829294,-5689.68,0.00058904,120]
[342792761,1732140829304,-1343.23,0.00058904,120]
[342792762,1732140829314,-553.27,0.00058904,120]
[342792763,1732140829324,-383.56445372,0.00058904,120]
[342792764,1732140829335,-1250.26,0.00058904,120]
[342792765,1732140829344,-982.33,0.00058904,120]
[342792766,1732140829355,-500.0,0.00058904,120]
[342792767,1732140829365,-667.62,0.00058904,120]
[342792768,1732140829376,-500.0,0.00058904,120]
[342792769,1732140829386,-500.0,0.00058904,120]
[342792770,1732140829396,-609.95,0.00058904,120]
[342792771,1732140829407,-500.0,0.00058904,120]
[342792772,1732140829417,-808.05,0.00058904,120]
[342792773,1732140829427,-522.08,0.00058904,120]
[342792774,1732140829438,-1111.01,0.00058904,120]
[342792775,1732140829448,-671.78,0.00058904,120]
[342792776,1732140829458,-500.0,0.00058904,120]
[342792777,1732140829469,-1704.12,0.00058904,120]
[342792778,1732140829479,-2102.13,0.00058904,120]
[342792779,1732140829489,-500.0,0.00058904,120]
[342792780,1732140829500,-907.83,0.00058904,120]
[342792781,1732140829511,-500.0,0.00058904,120]
[342792782,1732140829522,-1034.91,0.00058904,120]
[342792783,1732140829533,-500.0,0.00058904,120]
[342792784,1732140829543,-5007.0,0.00058904,120]
[342792785,1732140829554,-675.74,0.00058904,120]
[342792786,1732140829565,-2296.76,0.00058904,20]
[342792787,1732140829576,-500.0,0.00058904,120]
[342792788,1732140829586,-500.0,0.00058904,120]
[342792789,1732140829597,-500.0,0.00058904,120]
[342792790,1732140829607,-798.21,0.00058904,120]
[342792791,1732140829617,-647.62,0.00058904,120]
[342792792,1732140829628,-2489.82,0.00058904,120]
[342792793,1732140829639,-2045.61,0.00058904,120]
[342792794,1732140829649,-500.0,0.00058904,120]
[342792795,1732140829660,-1208.94,0.00058904,120]
[342792796,1732140829670,-500.0,0.00058904,120]
[342792797,1732140829680,-721.64,0.00058904,120]
[342792798,1732140829690,-972.27,0.00058904,120]
[342792799,1732140829701,-1591.78,0.00058904,120]
[342792800,1732140829712,-1887.72,0.00058904,120]
[342792801,1732140829723,-500.0,0.00058904,120]
[342792802,1732140829733,-850.0,0.00058904,120]
[342792803,1732140829745,-852.01,0.00058904,120]
[342792804,1732140829756,-872.84,0.00058904,120]
[342792805,1732140829771,-500.0,0.00058904,120]
[342792806,1732140829780,-846.36,0.00058904,120]
[342792807,1732140829790,-865.82,0.00058904,120]
[342792808,1732140829800,-1191.88,0.00058904,120]
[342792809,1732140829811,-5749.44,0.00058904,120]
[342792810,1732140829821,-500.0,0.00058904,120]
[342792811,1732140829831,-500.0,0.00058904,120]
[342792812,1732140829842,-500.0,0.00058904,120]
[342792813,1732140829853,-706.66,0.00058904,120]
[342792814,1732140829863,-1792.7,0.00058904,120]
[342792815,1732140829874,-669.11,0.00058904,120]
[342792816,1732140829884,-571.98,0.00058904,120]
[342792817,1732140829894,-688.41,0.00058904,120]
[342792818,1732140829904,-710.75,0.00058904,120]
[342792819,1732140829915,-2203.93,0.00058904,120]
[342792820,1732140829925,-600.76,0.00058904,120]
[342792821,1732140829934,-1092.67,0.00058904,120]
[342792822,1732140829945,-723.74,0.00058904,120]
[342792823,1732140829956,-962.75,0.00058904,120]
[342792824,1732140829968,-988.55,0.00058904,120]
[342792825,1732140829978,-690.54,0.00058904,120]
[342792826,1732140829989,-2304.78,0.00058904,120]
[342792827,1732140829999,-394.08573307,0.00058904,120]
[342792828,1732140830010,-246.16346226,0.00058904,120]
[342792829,1732140830019,-843.9,0.00058904,120]
[342792830,1732140830030,-500.0,0.00058904,120]
[342792831,1732140830041,-1647.87,0.00058904,120]
[342792832,1732140830051,-850.55,0.00058904,120]
[342792833,1732140830061,-809.67,0.00058904,120]
[342792834,1732140830072,-683.97,0.00058904,120]
[342792835,1732140830081,-834.1,0.00058904,120]
[342792836,1732140830091,-914.77,0.00058904,120]
[342792837,1732140830101,-1141.14,0.00058904,120]
[342792838,1732140830111,-500.0,0.00058904,120]
[342792839,1732140830121,-624.59,0.00058904,120]
[342792840,1732140830131,-1109.8,0.00058904,120]
[342792841,1732140830141,-572.34050653,0.00058904,120]
[342792842,1732140830152,-1752.52,0.00058904,120]
[342792843,1732140830162,-1096.46,0.00058904,120]
[342792844,1732140830172,-950.07,0.00058904,120]
[342792845,1732140830185,-2142.92,0.00058904,120]
[342792846,1732140830195,-1422.3,0.00058904,120]
[342792847,1732140830204,-829.0,0.00058904,120]
[342792848,1732140830215,-575.3,0.00058904,120]
[342792849,1732140830225,-500.0,0.00058904,120]
[342792850,1732140830236,-737.82,0.00058904,120]
[342792851,1732140830246,-666.21,0.00058904,120]
[342792852,1732140830259,-1778.99,0.00058904,120]
[342792853,1732140830270,-1715.56,0.00058904,120]
[342792854,1732140830279,-500.0,0.00058904,120]
[342792855,1732140830290,-1062.65,0.00058904,120]
[342792856,1732140830300,-500.0,0.00058904,120]
[342792857,1732140830312,-2346.15,0.00058904,120]
[342792858,1732140830322,-949.47,0.00058904,120]
[342792859,1732140830332,-1351.22,0.00058904,120]
[342792860,1732140830343,-888.32,0.00058904,120]
[342792861,1732140830353,-880.81,0.00058904,120]
[342792862,1732140830363,-642.33,0.00058904,120]
[342792863,1732140830373,-597.52,0.00058904,120]
[342792864,1732140830383,-6141.54,0.00058904,120]
[342792865,1732140830393,-1511.19,0.00058904,120]
[342792866,1732140830403,-1086.04,0.00058904,120]
[342792867,1732140830413,-668.34,0.00058904,120]
[342792868,1732140830423,-1492.04,0.00058904,120]
[342792869,1732140830433,-1351.32,0.00058904,120]
[342792870,1732140830442,-926.38,0.00058904,120]
[342792871,1732140830453,-695.0,0.00058904,120]
[342792872,1732140830462,-500.0,0.00058904,120]
[342792873,1732140830472,-5287.99,0.00058904,120]
[342792874,1732140830482,-845.23,0.00058904,120]
[342792875,1732140830492,-1482.2,0.00058904,120]
[342792876,1732140830503,-1260.12,0.00058904,120]
[342792877,1732140830514,-485.87174292,0.00058904,120]
[342792878,1732140830524,-1283.29,0.00058904,120]
[342792879,1732140830535,-1393.35,0.00058904,120]
[342792880,1732140830546,-500.0,0.00058904,120]
[342792881,1732140830556,-500.0,0.00058904,120]
[342792882,1732140830567,-380.60098494,0.00058904,120]
[342792883,1732140830576,-500.0,0.00058904,120]
[342792884,1732140830587,-2642.2,0.00058904,120]
[342792885,1732140830936,-1536.4,0.00058904,120]
[342792886,1732140830946,-3168.55,0.00058904,120]
[342792887,1732140830956,-500.0,0.00058904,120]
[342792888,1732140830966,-827.35,0.00058904,120]
[342792889,1732140830977,-500.0,0.00058904,120]
[342792890,1732140830987,-1702.89,0.00058904,120]
[342792891,1732140830997,-641.78,0.00058904,120]
[342792892,1732140831006,-1344.44,0.00058904,120]
[342792893,1732140831017,-1090.73,0.00058904,120]
[342792894,1732140831026,-52850.67,0.00058904,120]
[342792895,1732140831036,-481.22641927,0.00058904,120]
[342792896,1732140831045,-1753.45,0.00058904,120]
[342792897,1732140831055,-1064.88,0.00058904,120]
[342792898,1732140831064,-1006.78,0.00058904,120]
[342792899,1732140831074,-500.0,0.00058904,120]
[342792900,1732140831083,-622.97,0.00058904,120]
[342792901,1732140831093,-3042.17,0.00058904,120]
[342792902,1732140831103,-1736.39,0.00058904,120]
[342792903,1732140831112,-2339.16,0.00058904,120]
[342792904,1732140831122,-700.57,0.00058904,120]
[342792905,1732140831131,-585.35,0.00058904,120]
[342792906,1732140831140,-523.5,0.00058904,120]
[342792907,1732140831150,-1522.74,0.00058904,120]
[342792908,1732140831159,-2627.11,0.00058904,120]
[342792909,1732140831169,-1766.0,0.00058904,120]
[342792910,1732140831181,-693.99,0.00058904,120]
[342792911,1732140831190,-5335.95,0.00058904,120]
[342792912,1732140831200,-973.18,0.00058904,120]
[342792913,1732140831209,-500.0,0.00058904,120]
[342792914,1732140831219,-500.0,0.00058904,120]
[342792915,1732140831228,-778.26,0.00058904,120]